[Event "*** Titled Tuesday Blitz"]
[Site "Chess.com"]
[Date "2020.05.12"]
[Round "2"]
[White "Denis_Palkovich"]
[Black "GregShahade"]
[Result "0-1"]
[WhiteElo "2293"]
[BlackElo "2564"]
[TimeControl "180+1"]
[EndTime "10:17:26 PDT"]
[Termination "GregShahade won by resignation"]

1. d4 {[%clk 0:03:00.9]} 1... d5 {[%clk 0:02:56.6]} 2. Bf4 {[%clk 0:02:58.2]}
2... c5 {[%clk 0:02:55.8]} 3. e3 {[%clk 0:02:58.2]} 3... Nc6 {[%clk 0:02:54.1]}
4. c3 {[%clk 0:02:56.4]} 4... Bf5 {[%clk 0:02:52.7]} 5. Qb3 {[%clk 0:02:55.9]}
5... Qd7 {[%clk 0:02:44.2]} 6. Nd2 {[%clk 0:02:48.5]} 6... e6 {[%clk 0:02:43.7]}
7. Ngf3 {[%clk 0:02:44.1]} 7... f6 {[%clk 0:02:28]} 8. h3 {[%clk 0:02:29.9]}
8... Bd6 {[%clk 0:02:27.6]} 9. Bxd6 {[%clk 0:02:18.7]} 9... Qxd6 {[%clk
0:02:28]} 10. Bb5 {[%clk 0:02:17.5]} 10... Ne7 {[%clk 0:02:23.1]} 11. O-O {[%clk
0:02:13.3]} 11... O-O {[%clk 0:02:20.7]} 12. Nh4 {[%clk 0:01:56.2]} 12... a6
{[%clk 0:01:58]} 13. Nxf5 {[%clk 0:01:53.3]} 13... Nxf5 {[%clk 0:01:57.5]} 14.
dxc5 {[%clk 0:01:41]} 14... Qxc5 {[%clk 0:01:54.8]} 15. Bd3 {[%clk 0:01:41.4]}
15... Nxe3 {[%clk 0:01:48.8]} 16. Rfe1 {[%clk 0:01:11.3]} 16... Na5 {[%clk
0:01:15.3]} 17. Qa4 {[%clk 0:00:52.7]} 17... Nec4 {[%clk 0:01:14.3]} 18. Bxc4
{[%clk 0:00:19.1]} 18... Nxc4 {[%clk 0:01:12.3]} 19. Nxc4 {[%clk 0:00:18.6]}
19... dxc4 {[%clk 0:01:08.5]} 20. Rxe6 {[%clk 0:00:18.4]} 20... b5 {[%clk
0:01:02.1]} 21. Qc2 {[%clk 0:00:17.2]} 21... Rfe8 {[%clk 0:01:02.4]} 22. Rae1
{[%clk 0:00:16.8]} 22... Rxe6 {[%clk 0:01:02.6]} 23. Rxe6 {[%clk 0:00:17.7]}
23... a5 {[%clk 0:00:52.2]} 24. Qe4 {[%clk 0:00:17.4]} 24... Rf8 {[%clk
0:00:51]} 25. Re8 {[%clk 0:00:16.4]} 25... h5 {[%clk 0:00:42.8]} 26. Qe6+ {[%clk
0:00:16.4]} 26... Kh7 {[%clk 0:00:34.8]} 27. Qf5+ {[%clk 0:00:10.4]} 27... Qxf5
{[%clk 0:00:33.7]} 0-1

[Event "*** Titled Tuesday Blitz"]
[Site "Chess.com"]
[Date "2020.05.12"]
[Round "2"]
[White "Sven_Tica"]
[Black "Justinz"]
[Result "1/2-1/2"]
[WhiteElo "2653"]
[BlackElo "2332"]
[TimeControl "180+1"]
[EndTime "10:17:28 PDT"]
[Termination "Game drawn by repetition"]

1. d4 {[%clk 0:03:00.9]} 1... Nf6 {[%clk 0:02:57]} 2. c4 {[%clk 0:03:00]} 2...
e6 {[%clk 0:02:56.4]} 3. g3 {[%clk 0:02:59.8]} 3... Bb4+ {[%clk 0:02:54.5]} 4.
Bd2 {[%clk 0:02:59.6]} 4... Be7 {[%clk 0:02:54.4]} 5. Bg2 {[%clk 0:02:59.7]}
5... d5 {[%clk 0:02:54.9]} 6. Nf3 {[%clk 0:02:59.2]} 6... O-O {[%clk 0:02:54.6]}
7. O-O {[%clk 0:02:59.9]} 7... c6 {[%clk 0:02:54.3]} 8. Qc2 {[%clk 0:03:00.4]}
8... b6 {[%clk 0:02:52.5]} 9. Bf4 {[%clk 0:02:57.1]} 9... Ba6 {[%clk 0:02:49.9]}
10. cxd5 {[%clk 0:02:54]} 10... cxd5 {[%clk 0:02:48.5]} 11. Rc1 {[%clk
0:02:54.5]} 11... Nbd7 {[%clk 0:02:47.6]} 12. Nc3 {[%clk 0:02:49.7]} 12... Nh5
{[%clk 0:02:41]} 13. Bd2 {[%clk 0:02:45.2]} 13... Bd6 {[%clk 0:02:34.6]} 14. Qa4
{[%clk 0:02:41.3]} 14... Bb7 {[%clk 0:02:33.5]} 15. Nb5 {[%clk 0:02:40.4]} 15...
Bb8 {[%clk 0:02:33.2]} 16. Bb4 {[%clk 0:02:40.5]} 16... a6 {[%clk 0:02:29.8]}
17. Nd6 {[%clk 0:02:35.5]} 17... b5 {[%clk 0:02:08.5]} 18. Qa3 {[%clk
0:02:19.8]} 18... Bxd6 {[%clk 0:01:58.6]} 19. Bxd6 {[%clk 0:02:20.7]} 19... Re8
{[%clk 0:01:58.4]} 20. Rc7 {[%clk 0:02:20.9]} 20... Nb6 {[%clk 0:01:47.6]} 21.
b3 {[%clk 0:02:09.5]} 21... Nc8 {[%clk 0:01:10.8]} 22. Be5 {[%clk 0:02:08.2]}
22... Ra7 {[%clk 0:01:07.1]} 23. Qc5 {[%clk 0:02:04.8]} 23... f6 {[%clk
0:01:01.5]} 24. Bf4 {[%clk 0:02:03.2]} 24... Nxf4 {[%clk 0:01:00.6]} 25. gxf4
{[%clk 0:02:04.1]} 25... Nd6 {[%clk 0:00:39.7]} 26. Rc1 {[%clk 0:01:58.9]} 26...
Ra8 {[%clk 0:00:39.7]} 27. Ne1 {[%clk 0:01:54.8]} 27... Rc8 {[%clk 0:00:38.8]}
28. Nd3 {[%clk 0:01:46.7]} 28... Rxc7 {[%clk 0:00:34.8]} 29. Qxc7 {[%clk
0:01:47.6]} 29... Qxc7 {[%clk 0:00:34.1]} 30. Rxc7 {[%clk 0:01:48.5]} 30... Rc8
{[%clk 0:00:31.5]} 31. Rd7 {[%clk 0:01:49]} 31... Rc6 {[%clk 0:00:31.5]} 32. Nc5
{[%clk 0:01:47.7]} 32... Bc8 {[%clk 0:00:29.8]} 33. Rd8+ {[%clk 0:01:46.5]}
33... Kf7 {[%clk 0:00:29.9]} 34. e3 {[%clk 0:01:46]} 34... Ke7 {[%clk
0:00:28.9]} 35. Rh8 {[%clk 0:01:43.2]} 35... h6 {[%clk 0:00:28.4]} 36. Bf3
{[%clk 0:01:43.5]} 36... Nf7 {[%clk 0:00:27.2]} 37. Rg8 {[%clk 0:01:40.2]} 37...
g5 {[%clk 0:00:26.5]} 38. Bh5 {[%clk 0:01:40.6]} 38... Nd6 {[%clk 0:00:26.2]}
39. fxg5 {[%clk 0:01:35.6]} 39... hxg5 {[%clk 0:00:25.6]} 40. Kg2 {[%clk
0:01:31.5]} 40... e5 {[%clk 0:00:23.2]} 41. b4 {[%clk 0:01:24.8]} 41... exd4
{[%clk 0:00:21.9]} 42. exd4 {[%clk 0:01:25.7]} 42... Nf5 {[%clk 0:00:21.4]} 43.
Bf3 {[%clk 0:01:24.3]} 43... Nh4+ {[%clk 0:00:19.6]} 44. Kg3 {[%clk 0:01:23.4]}
44... Nf5+ {[%clk 0:00:18.6]} 45. Kg2 {[%clk 0:01:22.5]} 45... Nh4+ {[%clk
0:00:17.8]} 46. Kg3 {[%clk 0:01:22.6]} 46... Nf5+ {[%clk 0:00:17.8]} 47. Kg2
{[%clk 0:01:23.2]} 1/2-1/2

[Event "*** Titled Tuesday Blitz"]
[Site "Chess.com"]
[Date "2020.05.12"]
[Round "2"]
[White "gusmaster2262"]
[Black "DaggiGretarsson"]
[Result "0-1"]
[WhiteElo "2303"]
[BlackElo "2590"]
[TimeControl "180+1"]
[EndTime "10:17:28 PDT"]
[Termination "DaggiGretarsson won on time"]

1. d4 {[%clk 0:03:00.9]} 1... g6 {[%clk 0:02:59.7]} 2. c4 {[%clk 0:03:00.1]}
2... Bg7 {[%clk 0:02:59.9]} 3. Nf3 {[%clk 0:03:00.4]} 3... e6 {[%clk 0:02:59.5]}
4. g3 {[%clk 0:02:58.4]} 4... Ne7 {[%clk 0:02:59.3]} 5. Bg2 {[%clk 0:02:57]}
5... d5 {[%clk 0:02:59.3]} 6. O-O {[%clk 0:02:56.2]} 6... O-O {[%clk 0:02:59.4]}
7. Nc3 {[%clk 0:02:52.1]} 7... Nbc6 {[%clk 0:02:55.5]} 8. b3 {[%clk 0:02:42.6]}
8... dxc4 {[%clk 0:02:53.6]} 9. e3 {[%clk 0:02:35.4]} 9... cxb3 {[%clk
0:02:50.3]} 10. axb3 {[%clk 0:02:34.2]} 10... e5 {[%clk 0:02:40.4]} 11. Ba3
{[%clk 0:02:15.1]} 11... exd4 {[%clk 0:02:27.5]} 12. exd4 {[%clk 0:02:07.6]}
12... Re8 {[%clk 0:02:26.6]} 13. Re1 {[%clk 0:01:42.8]} 13... Bg4 {[%clk
0:02:17.3]} 14. h3 {[%clk 0:01:31]} 14... Bxf3 {[%clk 0:02:12.2]} 15. Bxf3
{[%clk 0:01:29.4]} 15... Qxd4 {[%clk 0:02:05.6]} 16. Rc1 {[%clk 0:00:24.4]}
16... Qxd1 {[%clk 0:01:39.6]} 17. Rexd1 {[%clk 0:00:16.8]} 17... Nd4 {[%clk
0:01:21.4]} 18. Bxb7 {[%clk 0:00:14]} 18... Rab8 {[%clk 0:01:21.1]} 19. Bxe7
{[%clk 0:00:12.3]} 19... Rxb7 {[%clk 0:01:06.3]} 20. Bc5 {[%clk 0:00:07.2]}
20... Nxb3 {[%clk 0:01:04.7]} 21. Nd5 {[%clk 0:00:03.6]} 21... Nxc1 {[%clk
0:01:02.6]} 22. Ne7+ {[%clk 0:00:02.6]} 22... Kh8 {[%clk 0:00:56.8]} 23. Rxc1
{[%clk 0:00:02.4]} 23... c6 {[%clk 0:00:48.9]} 24. Nxc6 {[%clk 0:00:01.5]} 24...
Rc8 {[%clk 0:00:37.8]} 0-1

[Event "*** Titled Tuesday Blitz"]
[Site "Chess.com"]
[Date "2020.05.12"]
[Round "2"]
[White "SCIM"]
[Black "GMHess"]
[Result "1-0"]
[WhiteElo "2548"]
[BlackElo "2812"]
[TimeControl "180+1"]
[EndTime "10:17:29 PDT"]
[Termination "SCIM won by resignation"]

1. d4 {[%clk 0:03:00.9]} 1... g6 {[%clk 0:02:57.6]} 2. c4 {[%clk 0:03:00.9]}
2... Bg7 {[%clk 0:02:57.5]} 3. Nc3 {[%clk 0:03:01.1]} 3... c5 {[%clk 0:02:57.8]}
4. d5 {[%clk 0:03:01.5]} 4... Bxc3+ {[%clk 0:02:56.9]} 5. bxc3 {[%clk
0:03:02.4]} 5... f5 {[%clk 0:02:57.5]} 6. e4 {[%clk 0:03:02.3]} 6... fxe4 {[%clk
0:02:58.4]} 7. f3 {[%clk 0:03:02.1]} 7... e5 {[%clk 0:02:58.6]} 8. dxe6 {[%clk
0:02:55]} 8... Nc6 {[%clk 0:02:56.2]} 9. Qc2 {[%clk 0:02:38.9]} 9... Qa5 {[%clk
0:02:44]} 10. Bg5 {[%clk 0:02:01.4]} 10... Nd4 {[%clk 0:02:23.5]} 11. Qxe4
{[%clk 0:01:19.3]} 11... Qxc3+ {[%clk 0:02:22.3]} 12. Kf2 {[%clk 0:01:19.5]}
12... Nxe6 {[%clk 0:01:31.2]} 13. Rd1 {[%clk 0:01:12.1]} 13... Nf6 {[%clk
0:01:20]} 14. Bxf6 {[%clk 0:00:58]} 14... Qxf6 {[%clk 0:01:19]} 15. Ne2 {[%clk
0:00:52]} 15... O-O {[%clk 0:01:18.6]} 16. Ng3 {[%clk 0:00:51.6]} 16... Nd4
{[%clk 0:01:08.5]} 17. Bd3 {[%clk 0:00:45.3]} 17... d6 {[%clk 0:01:03.8]} 18.
Rhe1 {[%clk 0:00:43.6]} 18... Be6 {[%clk 0:00:52.6]} 19. Kg1 {[%clk 0:00:25.3]}
19... Qf7 {[%clk 0:00:45.9]} 20. Qh4 {[%clk 0:00:19.2]} 20... Rae8 {[%clk
0:00:19.3]} 21. Ne4 {[%clk 0:00:19.1]} 21... Nf5 {[%clk 0:00:16.2]} 22. Qf2
{[%clk 0:00:16.9]} 22... Qf6 {[%clk 0:00:15.8]} 23. Nxf6+ {[%clk 0:00:16.6]}
23... Rxf6 {[%clk 0:00:16.7]} 24. Bxf5 {[%clk 0:00:16.3]} 24... gxf5 {[%clk
0:00:15.7]} 25. Rxd6 {[%clk 0:00:16.3]} 1-0

[Event "*** Titled Tuesday Blitz"]
[Site "Chess.com"]
[Date "2020.05.12"]
[Round "2"]
[White "KuzubovYuriy"]
[Black "jerry_77"]
[Result "1-0"]
[WhiteElo "2673"]
[BlackElo "2456"]
[TimeControl "180+1"]
[EndTime "10:17:30 PDT"]
[Termination "KuzubovYuriy won by resignation"]

1. d4 {[%clk 0:03:00.9]} 1... Nf6 {[%clk 0:02:59.7]} 2. Nf3 {[%clk 0:02:59.8]}
2... e6 {[%clk 0:03:00]} 3. c4 {[%clk 0:02:59.5]} 3... d5 {[%clk 0:03:00.2]} 4.
Nc3 {[%clk 0:02:59.3]} 4... Bb4 {[%clk 0:02:59.9]} 5. Bg5 {[%clk 0:02:59]} 5...
h6 {[%clk 0:03:00.1]} 6. Bxf6 {[%clk 0:02:59.3]} 6... Qxf6 {[%clk 0:03:01]} 7.
Qa4+ {[%clk 0:02:59.7]} 7... Nc6 {[%clk 0:03:01.1]} 8. e3 {[%clk 0:03:00.3]}
8... Bd7 {[%clk 0:03:00.7]} 9. Qc2 {[%clk 0:02:57.1]} 9... dxc4 {[%clk
0:02:56.3]} 10. Bxc4 {[%clk 0:02:56.8]} 10... O-O {[%clk 0:02:56.8]} 11. O-O
{[%clk 0:02:56.4]} 11... Bd6 {[%clk 0:02:53.7]} 12. Rad1 {[%clk 0:02:53.2]}
12... Rfd8 {[%clk 0:02:29.5]} 13. e4 {[%clk 0:02:42.3]} 13... e5 {[%clk
0:02:24.7]} 14. Nd5 {[%clk 0:02:37.9]} 14... Qg6 {[%clk 0:01:47.5]} 15. dxe5
{[%clk 0:02:13.4]} 15... Bc5 {[%clk 0:01:25.5]} 16. Nf4 {[%clk 0:02:12.8]} 16...
Qg4 {[%clk 0:00:55.9]} 17. Bxf7+ {[%clk 0:01:34]} 17... Kxf7 {[%clk 0:00:24.1]}
18. Rxd7+ {[%clk 0:01:32.3]} 18... Rxd7 {[%clk 0:00:21.6]} 19. e6+ {[%clk
0:01:30.3]} 19... Kg8 {[%clk 0:00:20]} 20. exd7 {[%clk 0:01:30.1]} 20... Bxf2+
{[%clk 0:00:19.6]} 21. Rxf2 {[%clk 0:01:25.8]} 21... Qxf4 {[%clk 0:00:20.5]} 22.
Nd4 {[%clk 0:01:23.2]} 22... Qd6 {[%clk 0:00:07.8]} 23. Nxc6 {[%clk 0:01:17.9]}
23... bxc6 {[%clk 0:00:08.7]} 24. Rd2 {[%clk 0:01:16.3]} 24... Qf6 {[%clk
0:00:07.2]} 25. e5 {[%clk 0:01:14.5]} 25... Qe7 {[%clk 0:00:04.7]} 26. Qc4+
{[%clk 0:01:12.8]} 26... Kh8 {[%clk 0:00:04.4]} 27. e6 {[%clk 0:01:13]} 27...
Rf8 {[%clk 0:00:04.2]} 28. h3 {[%clk 0:01:08.6]} 28... Qg5 {[%clk 0:00:04.4]}
29. Qd4 {[%clk 0:01:04.9]} 29... Rd8 {[%clk 0:00:02.7]} 30. Re2 {[%clk 0:01:02]}
30... Qe7 {[%clk 0:00:02.8]} 31. Qf4 {[%clk 0:00:57.3]} 31... c5 {[%clk
0:00:03]} 32. Qf7 {[%clk 0:00:55.4]} 32... Qd6 {[%clk 0:00:02.3]} 33. e7 {[%clk
0:00:53]} 33... Qd4+ {[%clk 0:00:02.5]} 34. Qf2 {[%clk 0:00:51.5]} 1-0

[Event "*** Titled Tuesday Blitz"]
[Site "Chess.com"]
[Date "2020.05.12"]
[Round "2"]
[White "WeAintSurePal"]
[Black "Antipov_Mikhail_Al"]
[Result "0-1"]
[WhiteElo "2340"]
[BlackElo "2867"]
[TimeControl "180+1"]
[EndTime "10:17:31 PDT"]
[Termination "Antipov_Mikhail_Al won by checkmate"]

1. d4 {[%clk 0:03:00.9]} 1... Nf6 {[%clk 0:02:59.8]} 2. Nf3 {[%clk 0:03:00.1]}
2... g6 {[%clk 0:02:59.8]} 3. Bg5 {[%clk 0:03:00]} 3... Bg7 {[%clk 0:02:59.4]}
4. Nbd2 {[%clk 0:03:00]} 4... h6 {[%clk 0:02:57.1]} 5. Bh4 {[%clk 0:02:58.3]}
5... d6 {[%clk 0:02:57.2]} 6. c3 {[%clk 0:02:57.7]} 6... O-O {[%clk 0:02:56.3]}
7. e4 {[%clk 0:02:54.2]} 7... Nh5 {[%clk 0:02:56.2]} 8. Bc4 {[%clk 0:02:51.6]}
8... Qe8 {[%clk 0:02:54.6]} 9. O-O {[%clk 0:02:49.4]} 9... e5 {[%clk 0:02:54.6]}
10. Re1 {[%clk 0:02:46.3]} 10... Kh7 {[%clk 0:02:42.1]} 11. Bf1 {[%clk 0:02:39]}
11... Nd7 {[%clk 0:02:39.4]} 12. a4 {[%clk 0:02:36.7]} 12... a5 {[%clk
0:02:12.5]} 13. Nc4 {[%clk 0:02:22.6]} 13... b6 {[%clk 0:02:12.7]} 14. dxe5
{[%clk 0:02:11.8]} 14... Nxe5 {[%clk 0:02:07.1]} 15. Nfxe5 {[%clk 0:02:08.9]}
15... dxe5 {[%clk 0:02:08]} 16. Ne3 {[%clk 0:02:03.4]} 16... Bb7 {[%clk
0:02:04.6]} 17. Nd5 {[%clk 0:02:02.2]} 17... Rc8 {[%clk 0:01:55.4]} 18. Be2
{[%clk 0:01:43.6]} 18... Nf4 {[%clk 0:01:50.6]} 19. Bg4 {[%clk 0:01:26.3]} 19...
f5 {[%clk 0:01:45.3]} 20. exf5 {[%clk 0:01:21.2]} 20... Bxd5 {[%clk 0:01:35.4]}
21. fxg6+ {[%clk 0:01:11.8]} 21... Qxg6 {[%clk 0:01:36.3]} 22. Bg3 {[%clk
0:01:07.6]} 22... Rce8 {[%clk 0:01:18.8]} 23. Bxf4 {[%clk 0:01:04.6]} 23... Rxf4
{[%clk 0:01:19.2]} 24. Qxd5 {[%clk 0:00:52.5]} 24... Rxg4 {[%clk 0:01:19.3]} 25.
Re3 {[%clk 0:00:49]} 25... e4 {[%clk 0:01:12.6]} 26. g3 {[%clk 0:00:45.5]} 26...
Rg5 {[%clk 0:01:12.9]} 27. Qb3 {[%clk 0:00:39.6]} 27... Rd8 {[%clk 0:01:11.7]}
28. Rae1 {[%clk 0:00:39.2]} 28... Re5 {[%clk 0:01:07.7]} 29. Qc2 {[%clk
0:00:38.5]} 29... Rde8 {[%clk 0:01:07.3]} 30. b4 {[%clk 0:00:34.7]} 30... Bf8
{[%clk 0:01:06]} 31. f3 {[%clk 0:00:20.4]} 31... axb4 {[%clk 0:01:04.6]} 32.
Rxe4 {[%clk 0:00:20.5]} 32... Bc5+ {[%clk 0:01:00]} 33. Kg2 {[%clk 0:00:20.3]}
33... bxc3 {[%clk 0:00:59.6]} 34. Qxc3 {[%clk 0:00:17.3]} 34... Rxe4 {[%clk
0:00:59.6]} 35. fxe4 {[%clk 0:00:17.3]} 35... Rxe4 {[%clk 0:01:00.5]} 36. Rf1
{[%clk 0:00:16.9]} 36... Re2+ {[%clk 0:01:00.1]} 37. Kh1 {[%clk 0:00:17.2]}
37... Qe4+ {[%clk 0:00:59.8]} 38. Rf3 {[%clk 0:00:17.1]} 38... Qb1+ {[%clk
0:00:57.2]} 39. Rf1 {[%clk 0:00:15.1]} 39... Qxf1# {[%clk 0:00:57.2]} 0-1

[Event "*** Titled Tuesday Blitz"]
[Site "Chess.com"]
[Date "2020.05.12"]
[Round "2"]
[White "TheSodabread"]
[Black "MattyDPerrine"]
[Result "0-1"]
[WhiteElo "1935"]
[BlackElo "2365"]
[TimeControl "180+1"]
[EndTime "10:17:32 PDT"]
[Termination "MattyDPerrine won by resignation"]

1. d4 {[%clk 0:03:00.9]} 1... Nf6 {[%clk 0:03:00]} 2. Nc3 {[%clk 0:02:57.5]}
2... d5 {[%clk 0:02:59.7]} 3. Bf4 {[%clk 0:02:56.7]} 3... Bf5 {[%clk 0:02:56.7]}
4. f3 {[%clk 0:02:56.8]} 4... c6 {[%clk 0:02:56.7]} 5. e3 {[%clk 0:02:54.9]}
5... e6 {[%clk 0:02:49.3]} 6. g4 {[%clk 0:02:54.5]} 6... Bg6 {[%clk 0:02:49.3]}
7. h4 {[%clk 0:02:47.2]} 7... h5 {[%clk 0:02:41.3]} 8. g5 {[%clk 0:02:47.3]}
8... Ng8 {[%clk 0:02:41.4]} 9. Bd3 {[%clk 0:02:48]} 9... Ne7 {[%clk 0:02:38.6]}
10. Nh3 {[%clk 0:02:48.3]} 10... Nd7 {[%clk 0:02:30.1]} 11. Qd2 {[%clk 0:02:44]}
11... Bxd3 {[%clk 0:02:29.9]} 12. Qxd3 {[%clk 0:02:44.1]} 12... Ng6 {[%clk
0:02:29.9]} 13. Bg3 {[%clk 0:02:44]} 13... e5 {[%clk 0:02:26.7]} 14. O-O-O
{[%clk 0:02:41.4]} 14... Bd6 {[%clk 0:02:23.3]} 15. e4 {[%clk 0:02:36.6]} 15...
dxe4 {[%clk 0:02:22.3]} 16. Nxe4 {[%clk 0:02:35]} 16... Be7 {[%clk 0:02:20.8]}
17. d5 {[%clk 0:02:14.6]} 17... cxd5 {[%clk 0:02:19.1]} 18. Qxd5 {[%clk
0:02:15.5]} 18... Qc7 {[%clk 0:02:17.1]} 19. Nd6+ {[%clk 0:02:04.1]} 19... Bxd6
{[%clk 0:02:15.8]} 20. Qxd6 {[%clk 0:02:05]} 20... Rc8 {[%clk 0:02:11.8]} 21.
Qxc7 {[%clk 0:01:40.2]} 21... Rxc7 {[%clk 0:02:12.7]} 22. f4 {[%clk 0:01:40.8]}
22... O-O {[%clk 0:02:06]} 23. f5 {[%clk 0:01:34.1]} 23... Ne7 {[%clk
0:02:03.9]} 24. f6 {[%clk 0:01:27.3]} 24... Nf5 {[%clk 0:01:58.9]} 25. fxg7
{[%clk 0:01:24.5]} 25... Kxg7 {[%clk 0:01:59.6]} 26. Rhg1 {[%clk 0:00:43.2]}
26... Rfc8 {[%clk 0:01:47.7]} 27. c3 {[%clk 0:00:33.9]} 27... b5 {[%clk
0:01:44.6]} 28. Rd5 {[%clk 0:00:34.1]} 28... Nxg3 {[%clk 0:01:29.2]} 29. Rxg3
{[%clk 0:00:35]} 29... b4 {[%clk 0:01:29.5]} 30. Rgd3 {[%clk 0:00:35.6]} 30...
Nb6 {[%clk 0:01:23.3]} 31. Rxe5 {[%clk 0:00:32.9]} 31... bxc3 {[%clk 0:01:23.4]}
32. bxc3 {[%clk 0:00:32.4]} 32... Rxc3+ {[%clk 0:01:24.3]} 33. Kd2 {[%clk
0:00:33.1]} 33... Nc4+ {[%clk 0:01:16.2]} 34. Kxc3 {[%clk 0:00:31.6]} 34...
Nxe5+ {[%clk 0:01:16.4]} 35. Kd4 {[%clk 0:00:27.4]} 35... Nxd3 {[%clk 0:01:04]}
36. Kxd3 {[%clk 0:00:28.3]} 36... f6 {[%clk 0:00:59.6]} 37. Nf4 {[%clk
0:00:26.9]} 37... fxg5 {[%clk 0:00:56]} 38. hxg5 {[%clk 0:00:22.2]} 38... h4
{[%clk 0:00:56]} 39. Ke3 {[%clk 0:00:15.8]} 39... h3 {[%clk 0:00:52.9]} 40. Kf2
{[%clk 0:00:15]} 40... Rf8 {[%clk 0:00:52.4]} 41. Kg3 {[%clk 0:00:14.2]} 41...
Rxf4 {[%clk 0:00:52.4]} 0-1

[Event "*** Titled Tuesday Blitz"]
[Site "Chess.com"]
[Date "2020.05.12"]
[Round "2"]
[White "SamuelGhimpu2003"]
[Black "mbachez"]
[Result "1-0"]
[WhiteElo "2708"]
[BlackElo "2476"]
[TimeControl "180+1"]
[EndTime "10:17:33 PDT"]
[Termination "SamuelGhimpu2003 won by resignation"]

1. e4 {[%clk 0:03:00.9]} 1... e6 {[%clk 0:02:59.2]} 2. f4 {[%clk 0:03:00.1]}
2... d5 {[%clk 0:02:58]} 3. e5 {[%clk 0:03:00.5]} 3... c5 {[%clk 0:02:58.3]} 4.
Nf3 {[%clk 0:03:00.7]} 4... Nc6 {[%clk 0:02:58.6]} 5. c3 {[%clk 0:02:59.9]} 5...
Nh6 {[%clk 0:02:58.8]} 6. Na3 {[%clk 0:02:59.8]} 6... Nf5 {[%clk 0:02:57.6]} 7.
Nc2 {[%clk 0:02:59.6]} 7... Be7 {[%clk 0:02:57.8]} 8. Bd3 {[%clk 0:02:59.2]}
8... O-O {[%clk 0:02:57.2]} 9. O-O {[%clk 0:02:55.9]} 9... c4 {[%clk 0:02:50.8]}
10. Bxf5 {[%clk 0:02:53.8]} 10... exf5 {[%clk 0:02:50.9]} 11. d3 {[%clk
0:02:54.3]} 11... f6 {[%clk 0:02:40.7]} 12. Kh1 {[%clk 0:02:39.9]} 12... cxd3
{[%clk 0:02:38.2]} 13. Qxd3 {[%clk 0:02:39.6]} 13... fxe5 {[%clk 0:02:34.4]} 14.
fxe5 {[%clk 0:02:40.5]} 14... f4 {[%clk 0:02:27.8]} 15. Ncd4 {[%clk 0:02:33.3]}
15... Kh8 {[%clk 0:02:20.2]} 16. Nxc6 {[%clk 0:02:19.8]} 16... bxc6 {[%clk
0:02:19.5]} 17. Nd4 {[%clk 0:02:20.7]} 17... Qb6 {[%clk 0:02:12.1]} 18. Rxf4
{[%clk 0:02:03]} 18... Ba6 {[%clk 0:02:08.5]} 19. Qc2 {[%clk 0:01:54.6]} 19...
c5 {[%clk 0:01:58.9]} 20. Nf5 {[%clk 0:01:51.4]} 20... Bg5 {[%clk 0:01:41.3]}
21. Rf3 {[%clk 0:01:51.5]} 21... Bxc1 {[%clk 0:01:28]} 22. Rxc1 {[%clk
0:01:52.4]} 22... Qe6 {[%clk 0:01:27.5]} 23. Qf2 {[%clk 0:01:49.4]} 23... Qxe5
{[%clk 0:01:11.2]} 24. Re1 {[%clk 0:01:46.4]} 24... Qf6 {[%clk 0:01:02.4]} 25.
Nh6 {[%clk 0:00:58.6]} 25... Qxf3 {[%clk 0:00:59.5]} 26. gxf3 {[%clk 0:00:56.1]}
26... gxh6 {[%clk 0:00:59.6]} 27. Qxc5 {[%clk 0:00:54.2]} 27... Rae8 {[%clk
0:00:40.6]} 28. Qd4+ {[%clk 0:00:43.4]} 28... Kg8 {[%clk 0:00:40.2]} 29. Rg1+
{[%clk 0:00:44.3]} 29... Kf7 {[%clk 0:00:40.3]} 30. Qxd5+ {[%clk 0:00:41.6]}
30... Re6 {[%clk 0:00:36.1]} 31. Qf5+ {[%clk 0:00:33]} 31... Ke7 {[%clk
0:00:31.2]} 32. Rg7+ {[%clk 0:00:33]} 1-0

[Event "*** Titled Tuesday Blitz"]
[Site "Chess.com"]
[Date "2020.05.12"]
[Round "2"]
[White "Nikolaj_6"]
[Black "Pintacara"]
[Result "0-1"]
[WhiteElo "2569"]
[BlackElo "2314"]
[TimeControl "180+1"]
[EndTime "10:17:33 PDT"]
[Termination "Pintacara won by resignation"]

1. e4 {[%clk 0:03:00.9]} 1... c5 {[%clk 0:03:00.1]} 2. Nf3 {[%clk 0:03:00.3]}
2... e6 {[%clk 0:03:00.5]} 3. d4 {[%clk 0:03:00.3]} 3... cxd4 {[%clk 0:03:01.4]}
4. Nxd4 {[%clk 0:03:01]} 4... a6 {[%clk 0:03:02.2]} 5. Nc3 {[%clk 0:03:01.3]}
5... Qc7 {[%clk 0:03:01.8]} 6. a3 {[%clk 0:03:01.4]} 6... Nf6 {[%clk 0:03:01.1]}
7. f4 {[%clk 0:03:01.2]} 7... d6 {[%clk 0:03:00.7]} 8. Qf3 {[%clk 0:03:00.9]}
8... Nbd7 {[%clk 0:03:00.2]} 9. g4 {[%clk 0:03:00.7]} 9... g6 {[%clk 0:02:59.5]}
10. g5 {[%clk 0:03:00.5]} 10... Nh5 {[%clk 0:02:55.6]} 11. Be3 {[%clk
0:02:58.4]} 11... b5 {[%clk 0:02:53.1]} 12. O-O-O {[%clk 0:02:48.4]} 12... Bb7
{[%clk 0:02:52.6]} 13. Nde2 {[%clk 0:02:45.9]} 13... Bg7 {[%clk 0:02:46.4]} 14.
Bh3 {[%clk 0:02:34.8]} 14... Rc8 {[%clk 0:02:37.1]} 15. Kb1 {[%clk 0:02:29.9]}
15... O-O {[%clk 0:02:29.5]} 16. Bd4 {[%clk 0:02:24.6]} 16... a5 {[%clk
0:02:26.3]} 17. Bxg7 {[%clk 0:02:22.1]} 17... Nxg7 {[%clk 0:02:27.2]} 18. Qd3
{[%clk 0:02:19.2]} 18... b4 {[%clk 0:02:17.2]} 19. Nb5 {[%clk 0:02:00.9]} 19...
Qb6 {[%clk 0:02:12.5]} 20. Nxd6 {[%clk 0:02:00.8]} 20... Nc5 {[%clk 0:02:10.4]}
21. Nxc8 {[%clk 0:01:52.2]} 21... Rxc8 {[%clk 0:02:11.3]} 22. Qd6 {[%clk
0:01:35.5]} 22... Qa7 {[%clk 0:01:49.6]} 23. axb4 {[%clk 0:01:30.9]} 23... axb4
{[%clk 0:01:50.5]} 24. Ng3 {[%clk 0:01:28.9]} 24... Ra8 {[%clk 0:01:43.7]} 25.
Kc1 {[%clk 0:01:24.8]} 25... Bxe4 {[%clk 0:01:33.1]} 26. Rhe1 {[%clk 0:01:21.7]}
26... Rc8 {[%clk 0:01:22.8]} 27. Qd8+ {[%clk 0:01:19.2]} 27... Rxd8 {[%clk
0:01:18.5]} 28. Rxd8+ {[%clk 0:01:19.5]} 28... Ne8 {[%clk 0:01:18.8]} 29. Rxe8+
{[%clk 0:01:19.6]} 29... Kg7 {[%clk 0:01:19.4]} 30. Nxe4 {[%clk 0:01:15.1]}
30... Nxe4 {[%clk 0:01:09.8]} 31. Rxe4 {[%clk 0:01:15]} 31... Qg1+ {[%clk
0:01:10.5]} 32. Kd2 {[%clk 0:01:14.2]} 32... Qxh2+ {[%clk 0:01:11.2]} 33. Kd3
{[%clk 0:00:55]} 33... Qxh3+ {[%clk 0:01:09.1]} 34. Kc4 {[%clk 0:00:54]} 34...
Qf5 {[%clk 0:01:04.1]} 35. Rd4 {[%clk 0:00:53.8]} 35... Qxc2+ {[%clk 0:01:02.5]}
36. Kxb4 {[%clk 0:00:54]} 36... Qxb2+ {[%clk 0:01:02.8]} 37. Kc4 {[%clk
0:00:54.4]} 37... Qa2+ {[%clk 0:01:00.6]} 38. Kb4 {[%clk 0:00:51]} 38... Qb2+
{[%clk 0:00:43.6]} 39. Kc4 {[%clk 0:00:50.6]} 39... Qc2+ {[%clk 0:00:42.8]} 40.
Kb4 {[%clk 0:00:50.2]} 40... h6 {[%clk 0:00:32.5]} 41. Rdd8 {[%clk 0:00:47.4]}
41... hxg5 {[%clk 0:00:31.1]} 42. Rg8+ {[%clk 0:00:45.9]} 42... Kf6 {[%clk
0:00:30]} 0-1